bitfinex-derivatives/quotes_BTCF0:USTF0_20240815
["timestamp","ask_amount","ask_price","bid_price","bid_amount"]
[1723758525373,0.07081152,57301.0,57300.0,0.012]
[1723758525576,0.07070839,57301.0,57300.0,0.012]
[1723758525883,0.16720839,57301.0,57300.0,0.012]
[1723758526283,0.0975,57301.0,57300.0,0.012]
[1723758526483,0.16720839,57301.0,57300.0,0.012]
[1723758527279,0.0975,57301.0,57300.0,0.012]
[1723758528882,0.141118,57301.0,57300.0,0.012]
[1723758529182,0.23838915,57301.0,57300.0,0.012]
[1723758529487,0.16939618,57301.0,57300.0,0.012]
[1723758529683,0.22828034,57301.0,57300.0,0.012]
[1723758529878,0.141118,57301.0,57300.0,0.012]
[1723758530784,0.16939604,57301.0,57300.0,0.012]
[1723758531281,0.141118,57301.0,57300.0,0.012]
[1723758531487,0.1693959,57301.0,57300.0,0.012]
[1723758531782,0.141118,57301.0,57300.0,0.012]
[1723758531987,0.16939607,57301.0,57300.0,0.012]
[1723758532487,0.141118,57301.0,57300.0,0.012]
[1723758532682,1.11295592,57301.0,57300.0,0.012]
[1723758532981,0.71295592,57301.0,57300.0,0.012]
[1723758533487,0.71295813,57301.0,57300.0,0.012]
[1723758533878,0.69295813,57301.0,57300.0,0.012]
[1723758536286,1.09295813,57301.0,57300.0,0.012]
[1723758536583,0.69295813,57301.0,57300.0,0.012]
[1723758537490,1.09295813,57301.0,57300.0,0.012]
[1723758537981,0.69295813,57301.0,57300.0,0.012]
[1723758538181,1.09295813,57301.0,57300.0,0.012]
[1723758538380,0.69295813,57301.0,57300.0,0.012]
[1723758539179,0.141118,57301.0,57300.0,0.012]
[1723758539386,0.13166539,57301.0,57300.0,0.012]
[1723758539585,0.22816539,57301.0,57300.0,0.012]
[1723758539885,0.77171884,57301.0,57300.0,0.012]
[1723758540079,0.684678,57301.0,57300.0,0.012]
[1723758540280,0.161118,57301.0,57300.0,0.012]
[1723758540484,0.684678,57301.0,57300.0,0.012]
[1723758540687,0.18939747,57301.0,57300.0,0.012]
[1723758540885,0.16939747,57301.0,57300.0,0.012]
[1723758541289,0.18939722,57301.0,57300.0,0.012]
[1723758541881,0.18939722,57301.0,57284.0,0.18654794]
[1723758541882,0.043626,57290.0,57284.0,0.1355]
[1723758542086,0.4573,57285.0,57284.0,0.1355]
[1723758542282,0.4573,57285.0,57283.0,0.1278]
[1723758543186,0.4583,57285.0,57284.0,0.028]
[1723758543386,0.4583,57285.0,57278.0,0.00026171]
[1723758543690,0.0965,57279.0,57278.0,0.00026171]
[1723758545581,0.6734251,57279.0,57278.0,0.00026171]
[1723758545780,0.0965,57268.0,57267.0,0.3608]
[1723758545985,0.0965,57268.0,57267.0,0.41184794]
[1723758546597,0.0965,57268.0,57267.0,0.36930742]
[1723758546785,0.0975,57268.0,57267.0,0.36930742]
[1723758547783,0.0985,57268.0,57267.0,0.006]
[1723758547988,0.002,57268.0,57267.0,0.006]
[1723758548195,0.0985,57268.0,57267.0,0.006]
[1723758550607,0.10700244,57268.0,57267.0,0.006]
[1723758553803,0.35960244,57268.0,57267.0,0.006]
[1723758554003,1.28344244,57268.0,57249.0,0.09470494]
[1723758554205,0.40445,57259.0,57250.0,0.1239]
[1723758555198,0.40445,57259.0,57253.0,0.00026194]
[1723758555506,0.40545,57259.0,57253.0,0.00026194]
[1723758555807,0.40545,57259.0,57258.0,0.01015398]
[1723758556000,0.64695,57259.0,57258.0,0.01015398]
[1723758556807,0.65295,57259.0,57258.0,0.00115398]
[1723758557302,1.17687,57259.0,57258.0,0.00115398]
[1723758557505,1.58544731,57259.0,57258.0,0.00115398]
[1723758558197,1.58444731,57259.0,57258.0,0.00115398]
[1723758558397,1.58444731,57259.0,57258.0,0.00015398]
[1723758558904,0.043653,57255.0,57253.0,0.00026194]
[1723758559904,0.00015398,57254.0,57253.0,0.00026194]
[1723758560104,0.36095398,57254.0,57253.0,0.00026194]
[1723758562501,0.36295398,57254.0,57253.0,0.00026194]
[1723758563794,0.61995398,57254.0,57253.0,0.00026194]
[1723758566901,0.61995398,57254.0,57253.0,0.71026194]
[1723758567103,0.98075398,57254.0,57253.0,0.71026194]
[1723758568205,0.25915398,57254.0,57253.0,0.71026194]
[1723758568406,0.98075398,57254.0,57253.0,0.71026194]
[1723758568611,0.25915398,57254.0,57253.0,0.71026194]
[1723758569007,0.98075398,57254.0,57253.0,0.71026194]
[1723758570310,0.98075398,57254.0,57253.0,0.39215802]
[1723758571916,2.04840798,57254.0,57248.0,0.00026194]
[1723758572117,0.6023,57249.0,57248.0,0.00026194]
[1723758573110,0.645958,57249.0,57248.0,0.00426194]
[1723758574314,0.646958,57249.0,57248.0,0.00426194]
[1723758574513,0.646958,57249.0,57248.0,0.00026194]
[1723758574817,0.646958,57249.0,57248.0,0.00426194]
[1723758575917,0.65545638,57249.0,57248.0,0.00426194]
[1723758578013,0.51055638,57249.0,57248.0,0.00426194]
[1723758580018,1.03459638,57249.0,57248.0,0.00426194]
[1723758580722,1.10422936,57249.0,57248.0,0.00426194]
[1723758581414,1.03459638,57249.0,57248.0,0.00426194]
[1723758583229,1.07825438,57249.0,57248.0,0.00426194]
[1723758583418,1.1652956,57249.0,57248.0,0.00426194]
[1723758583619,1.10656223,57249.0,57248.0,0.00426194]
[1723758583819,1.00996218,57249.0,57248.0,0.00426194]
[1723758584015,1.52656142,57249.0,57248.0,0.00426194]
[1723758584227,1.49825438,57249.0,57248.0,0.00426194]
[1723758584425,1.52656188,57249.0,57248.0,0.00426194]
[1723758584922,0.043664,57241.0,57240.0,0.00860828]
[1723758585130,0.043666,57239.0,57234.0,0.31074794]
[1723758585327,0.3608,57235.0,57234.0,0.31074794]
[1723758585727,0.3608,57235.0,57234.0,0.2597]
[1723758586133,0.3608,57235.0,57234.0,0.31074794]
[1723758586919,0.3618,57235.0,57234.0,0.31920674]
[1723758588140,0.3628,57235.0,57234.0,0.31920674]
[1723758588636,0.3628,57235.0,57234.0,0.2681588]
[1723758588831,0.3628,57235.0,57234.0,0.31920674]
[1723758589433,0.3628,57235.0,57234.0,0.2681588]
[1723758590340,0.3628,57235.0,57234.0,0.31920674]
[1723758590539,0.002,57235.0,57234.0,0.2681588]
[1723758590742,0.002,57235.0,57234.0,0.1417588]
[1723758591448,0.002,57235.0,57234.0,0.19318649]
[1723758592139,0.002,57235.0,57234.0,0.1417588]
[1723758592634,0.002,57235.0,57234.0,0.19318649]
[1723758593541,0.045668,57235.0,57234.0,0.1417588]
[1723758594935,0.045668,57235.0,57234.0,0.0084588]
[1723758595141,0.043669,57234.0,57232.0,0.127]
[1723758595340,0.0966,57233.0,57232.0,0.127]
[1723758596545,0.0976,57233.0,57232.0,0.127]
[1723758597252,0.14127,57233.0,57232.0,0.127]
[1723758597447,0.14227,57233.0,57232.0,0.127]
[1723758597642,0.14227,57233.0,57231.0,0.05142769]
[1723758598050,0.043671,57232.0,57231.0,0.05142769]
[1723758598848,0.043671,57232.0,57231.0,0.05996146]
[1723758599248,0.044671,57232.0,57231.0,0.05996146]
[1723758599438,0.001,57232.0,57231.0,1.09273377]
[1723758599640,0.0966,57234.0,57232.0,0.5242]
[1723758599836,0.4574,57236.0,57232.0,0.6842]
[1723758600145,0.4574,57236.0,57234.0,0.05147304]
[1723758600342,0.4574,57236.0,57234.0,0.21147304]
[1723758600650,0.4574,57236.0,57235.0,0.52416]
[1723758600852,0.4574,57236.0,57235.0,0.67416]
[1723758601050,0.4584,57236.0,57235.0,1.07416]
[1723758601252,0.4584,57236.0,57235.0,1.12563304]
[1723758602136,0.3618,57236.0,57235.0,1.12563304]
[1723758602351,0.0976,57236.0,57235.0,1.16930104]
[1723758602543,0.0976,57236.0,57235.0,1.18652101]
[1723758602746,0.0976,57236.0,57235.0,1.117828]
[1723758603146,0.00026194,57240.0,57235.0,1.07416]
[1723758603447,0.00015398,57241.0,57238.0,0.404466]
[1723758603448,0.0966,57239.0,57238.0,0.404466]
[1723758603647,0.0966,57239.0,57238.0,1.078586]
[1723758603956,0.0966,57239.0,57238.0,1.478586]
[1723758604651,0.0976,57239.0,57238.0,1.478586]
[1723758605250,0.0986,57239.0,57238.0,1.480586]
[1723758606151,0.09675398,57241.0,57240.0,0.043665]
[1723758606356,0.09675398,57241.0,57240.0,0.193665]
[1723758606553,0.09675398,57241.0,57240.0,1.117785]
[1723758607144,0.00026194,57244.0,57240.0,1.17372]
[1723758607445,0.00026194,57244.0,57243.0,0.11220225]
[1723758607647,0.3608,57247.0,57243.0,0.11220225]
[1723758607648,0.3608,57247.0,57243.0,0.690262]
[1723758607955,0.3608,57247.0,57246.0,0.0966]
[1723758608150,0.0966,57251.0,57246.0,0.2366]
[1723758608451,0.0966,57251.0,57250.0,0.0513749]
[1723758608655,0.0966,57251.0,57248.0,0.0513749]
[1723758608953,0.0966,57251.0,57249.0,0.0513749]
[1723758609146,0.0966,57251.0,57249.0,0.68404]
[1723758609454,0.0966,57251.0,57250.0,0.524]
[1723758609954,0.0966,57251.0,57250.0,0.924]
[1723758610149,0.0966,57251.0,57250.0,1.2848]
[1723758610753,0.00026194,57256.0,57250.0,1.2848]
[1723758611050,0.00026194,57256.0,57252.0,0.14798849]
[1723758611252,0.00026194,57256.0,57254.0,0.043654]
[1723758611461,0.00026194,57256.0,57255.0,0.043653]
[1723758611848,0.00026194,57256.0,57255.0,0.967613]
[1723758612254,0.00126194,57256.0,57255.0,1.328413]
[1723758612651,0.3608,57265.0,57255.0,1.38136]
[1723758612954,0.3608,57265.0,57258.0,0.14795566]
[1723758613150,0.3608,57265.0,57258.0,0.0966]
[1723758613357,0.0966,57263.0,57259.0,0.1342]
[1723758613551,0.0966,57263.0,57262.0,0.043648]
[1723758613951,0.3608,57265.0,57262.0,0.92392]
[1723758614148,0.3608,57265.0,57264.0,0.043646]
[1723758614347,0.00026194,57267.0,57266.0,0.043645]
[1723758614559,0.00026194,57267.0,57266.0,0.140245]
[1723758616358,0.00026194,57267.0,57266.0,0.664125]
[1723758616547,0.00026194,57267.0,57266.0,1.064125]
[1723758616548,0.00126194,57267.0,57266.0,1.064125]
[1723758617155,0.00226194,57267.0,57266.0,1.069125]
[1723758619856,0.2621,57279.0,57266.0,1.02548]
[1723758620054,0.0966,57273.0,57271.0,0.3608]
[1723758620252,0.0966,57275.0,57271.0,0.4574]
[1723758621154,0.0966,57272.0,57271.0,0.404441]
[1723758621464,0.0966,57272.0,57271.0,0.043641]
[1723758621654,0.0966,57272.0,57271.0,0.404441]
[1723758621859,0.0966,57275.0,57271.0,0.501041]
[1723758622059,0.0976,57275.0,57271.0,0.506041]
[1723758622260,0.001,57272.0,57271.0,0.507041]
[1723758622767,0.001,57272.0,57271.0,1.43966102]
[1723758623060,0.001,57272.0,57271.0,1.60966102]
[1723758623250,0.0976,57275.0,57271.0,1.60866102]
[1723758623455,0.0986,57275.0,57271.0,1.21066102]
[1723758623655,0.001,57275.0,57274.0,0.043639]
[1723758623855,0.001,57275.0,57274.0,0.213639]
[1723758624059,0.001,57275.0,57274.0,1.137439]
[1723758624667,0.002,57275.0,57274.0,1.137439]
[1723758624864,0.001,57275.0,57274.0,1.137439]
[1723758625260,0.00026194,57279.0,57278.0,0.043636]
[1723758625466,0.00026194,57279.0,57278.0,0.310236]
[1723758625663,0.00026194,57279.0,57278.0,0.833996]
[1723758626061,0.4948,57287.0,57278.0,0.833996]
[1723758626062,0.4948,57287.0,57278.0,1.19036]
[1723758626262,0.2306,57287.0,57282.0,0.4574]
[1723758626568,0.2306,57287.0,57282.0,0.6274]
[1723758626763,0.0966,57289.0,57284.0,0.043631]
[1723758626960,0.0966,57289.0,57284.0,0.213631]
[1723758627759,0.003,57287.0,57284.0,0.213631]
[1723758628158,0.003,57287.0,57285.0,0.04363]
[1723758628362,0.003,57287.0,57285.0,0.18363]
[1723758628563,0.1046,57289.0,57285.0,0.70731]
[1723758628862,0.1016,57289.0,57285.0,0.18363]
[1723758629069,0.003,57287.0,57285.0,0.18363]
[1723758629268,0.003,57287.0,57286.0,0.0966]
[1723758629469,0.1016,57289.0,57286.0,0.2366]
[1723758629668,0.004,57287.0,57286.0,0.2366]
[1723758629971,0.004,57287.0,57286.0,0.0966]
[1723758630268,0.004,57287.0,57286.0,0.62028]
[1723758630768,0.01,57287.0,57286.0,1.19028]
[1723758630967,0.01,57287.0,57286.0,1.23391]
[1723758631563,0.012,57287.0,57286.0,1.23491]
[1723758631765,0.008,57287.0,57286.0,1.23491]
[1723758632663,0.013,57287.0,57286.0,1.2437462]
[1723758633865,0.13036102,57292.0,57291.0,0.043626]
[1723758634080,0.13036102,57292.0,57291.0,0.140226]
[1723758634273,0.13036102,57292.0,57291.0,0.280226]
[1723758634972,0.1342,57299.0,57293.0,0.043624]
[1723758635166,0.2308,57299.0,57293.0,0.140224]
[1723758635671,0.1342,57299.0,57296.0,0.0966]
[1723758635970,0.1342,57299.0,57296.0,0.140222]
[1723758636170,0.1342,57299.0,57296.0,0.0966]
[1723758636475,0.1352,57299.0,57296.0,0.10562425]
[1723758636675,0.1352,57299.0,57298.0,0.04362]
[1723758636876,0.1352,57299.0,57298.0,0.19362]
[1723758637077,0.1492,57299.0,57298.0,0.19362]
[1723758637770,0.1352,57299.0,57298.0,0.19962]
[1723758637968,0.1362,57299.0,57298.0,0.19962]
[1723758638363,0.002,57299.0,57298.0,1.12318]
[1723758638586,0.002,57299.0,57298.0,1.13218]
[1723758642392,0.3608,57309.0,57298.0,1.13218]
[1723758642393,0.05198051,57332.0,57322.0,0.8481]
[1723758642681,0.08711445,57342.0,57331.0,0.8182]
[1723758642682,0.0966,57342.0,57331.0,0.8182]
[1723758642868,0.05198051,57358.0,57341.0,0.3608]
[1723758643069,0.29948051,57357.0,57346.0,0.3608]
[1723758643265,0.043581,57351.0,57346.0,0.3608]
[1723758643471,0.52308,57356.0,57346.0,0.3608]
[1723758643670,0.0966,57347.0,57346.0,0.00026165]
[1723758643976,0.043583,57348.0,57346.0,0.00026165]
[1723758644183,0.966703,57348.0,57346.0,0.00026165]
[1723758644481,0.566703,57348.0,57346.0,0.00126165]
[1723758644978,0.013,57347.0,57346.0,0.00226165]
[1723758645371,0.013,57347.0,57346.0,0.00126165]
[1723758645372,0.52312,57347.0,57346.0,0.00126165]
[1723758645675,0.52312,57347.0,57346.0,0.00226165]
[1723758647173,0.92312,57347.0,57346.0,0.00226165]
[1723758647369,0.92312,57347.0,57346.0,0.00126165]
[1723758647573,0.92312,57347.0,57346.0,0.00226165]
[1723758647878,0.93612,57347.0,57346.0,0.00226165]
[1723758648374,0.93612,57347.0,57346.0,0.00126165]
[1723758648580,0.94312,57347.0,57346.0,0.00226165]
[1723758649975,0.54312,57347.0,57346.0,0.00226165]
[1723758651982,0.02,57347.0,57346.0,0.00226165]
[1723758652286,0.54312,57347.0,57346.0,0.00226165]
[1723758652485,0.02,57347.0,57346.0,0.00226165]
[1723758655583,0.1412,57347.0,57346.0,0.00226165]
[1723758657982,0.1412,57347.0,57346.0,0.04584565]
[1723758658182,0.02,57347.0,57346.0,0.04584565]
[1723758662091,0.02,57347.0,57346.0,0.00226165]
[1723758662287,0.063583,57347.0,57346.0,0.00226165]
[1723758662694,0.063583,57347.0,57346.0,0.36306165]
[1723758662894,0.063583,57347.0,57346.0,0.00226165]
[1723758671193,0.986703,57347.0,57346.0,0.00226165]
[1723758671397,0.94312,57347.0,57338.0,0.3608]
[1723758671592,0.05211633,57343.0,57338.0,0.3608]
[1723758671793,0.05211633,57345.0,57338.0,0.41184951]
[1723758672189,0.05211633,57340.0,57339.0,0.11165402]
[1723758672389,0.05211633,57341.0,57338.0,0.3608]
[1723758672595,0.05211633,57340.0,57338.0,0.3608]
[1723758672790,0.05211633,57340.0,57338.0,0.42929579]
[1723758672988,0.05211633,57340.0,57338.0,0.43029579]
[1723758673294,0.05211633,57341.0,57338.0,0.43029579]
[1723758673498,0.169189,57339.0,57338.0,0.05337443]
[1723758673694,0.169189,57339.0,57338.0,0.002]
[1723758673904,1.092389,57339.0,57338.0,0.002]
[1723758674202,0.043592,57335.0,57334.0,0.05163608]
[1723758674390,0.566832,57335.0,57334.0,0.00026165]
[1723758674592,0.566832,57335.0,57330.0,0.05137443]
[1723758674593,0.043595,57331.0,57330.0,0.05137443]
[1723758674906,0.043597,57329.0,57328.0,0.05137443]
[1723758675092,0.043598,57328.0,57327.0,0.05137443]
[1723758675499,0.043598,57327.0,57326.0,0.41217443]
[1723758675706,0.043598,57327.0,57326.0,0.3608]
[1723758678007,0.003,57327.0,57326.0,0.3608]
[1723758678208,0.004,57327.0,57326.0,0.3608]
[1723758678409,0.047598,57327.0,57326.0,0.3608]
[1723758678804,0.046598,57327.0,57326.0,0.3608]
[1723758679113,0.043601,57324.0,57323.0,0.01111105]
[1723758679310,0.003,57327.0,57322.0,0.05156421]
[1723758679311,0.043601,57323.0,57322.0,0.05156421]
[1723758679512,0.043601,57323.0,57322.0,0.06243923]
[1723758679706,0.043601,57323.0,57322.0,0.01113667]
[1723758681107,0.043601,57323.0,57322.0,0.00026165]
[1723758681507,0.043601,57323.0,57322.0,0.00326165]
[1723758682619,0.045601,57323.0,57322.0,0.00026165]
[1723758683018,0.049601,57323.0,57322.0,0.00026165]
[1723758698536,0.006,57323.0,57322.0,0.09676165]
[1723758699328,0.006,57323.0,57322.0,0.35316165]
[1723758699730,0.19014414,57335.0,57322.0,0.35316165]
[1723758699731,0.02748592,57336.0,57323.0,0.52332]
[1723758699928,0.12398592,57350.0,57335.0,0.7216]
[1723758700126,0.0965,57352.0,57348.0,0.0965]
[1723758700328,0.0965,57352.0,57351.0,0.3608]
[1723758700837,0.06964414,57363.0,57351.0,0.3608]
[1723758700838,0.0965,57355.0,57351.0,0.3608]
[1723758701037,0.00026071,57357.0,57353.0,0.140078]
[1723758701236,0.00026071,57357.0,57356.0,0.3608]
[1723758702239,0.00526071,57357.0,57356.0,0.3608]
[1723758702426,0.01926071,57357.0,57356.0,0.3618]
[1723758703033,0.01926071,57357.0,57356.0,0.3628]
[1723758708743,0.06283571,57357.0,57356.0,0.3628]
[1723758709135,0.01926071,57357.0,57356.0,0.3628]
[1723758710638,0.01926071,57357.0,57356.0,0.406376]
[1723758711846,0.01926071,57357.0,57356.0,1.489416]
[1723758712449,0.1267,57374.0,57356.0,1.44584]
[1723758712450,0.043563,57374.0,57356.0,1.44584]
[1723758712742,0.3608,57377.0,57362.0,0.3608]
[1723758712945,0.3608,57377.0,57363.0,0.2479]
[1723758713538,0.3608,57377.0,57364.0,0.00026165]
[1723758713938,0.17146,57378.0,57368.0,0.3608]
[1723758714141,0.17146,57378.0,57368.0,0.404367]
[1723758714538,0.001,57377.0,57368.0,0.404367]
[1723758714738,0.003,57377.0,57368.0,0.404367]
[1723758715137,0.3608,57375.0,57368.0,0.3608]
[1723758715344,0.003,57377.0,57368.0,0.3608]
[1723758715345,0.002,57377.0,57368.0,0.3618]
[1723758715545,0.043564,57372.0,57368.0,0.3618]
[1723758716747,0.043564,57372.0,57368.0,0.3608]
[1723758716940,0.043564,57372.0,57368.0,0.37270511]
[1723758717647,0.044564,57372.0,57368.0,0.37270511]
[1723758718141,0.001,57372.0,57368.0,0.37270511]
[1723758719747,0.043565,57371.0,57368.0,0.37270511]
[1723758720151,0.043565,57371.0,57368.0,0.89562511]
[1723758720755,0.043565,57371.0,57368.0,0.37270511]
[1723758721457,0.044565,57371.0,57368.0,0.37270511]
[1723758721753,0.043566,57370.0,57368.0,0.37270511]
[1723758722151,0.043566,57370.0,57368.0,0.89562511]
[1723758722543,0.001,57371.0,57369.0,0.52292]
[1723758722746,0.001,57371.0,57369.0,0.203566]
[1723758722946,0.001,57371.0,57369.0,0.726486]
[1723758723349,0.001,57370.0,57369.0,0.706486]
[1723758723549,0.001,57370.0,57369.0,0.183566]
[1723758723752,0.001,57370.0,57369.0,0.706486]
[1723758723957,0.001,57370.0,57368.0,0.37270511]
[1723758724166,0.001,57370.0,57368.0,1.04562511]
[1723758724542,0.043562,57375.0,57368.0,1.04462511]
[1723758724748,0.001,57371.0,57369.0,0.001]
[1723758724948,0.001,57371.0,57369.0,0.171]
[1723758725155,0.001,57371.0,57370.0,0.1332]
[1723758726159,0.001,57371.0,57370.0,0.176766]
[1723758726360,0.043559,57379.0,57370.0,0.176766]
[1723758726653,0.043559,57379.0,57376.0,0.3608]
[1723758727654,0.043555,57384.0,57376.0,0.3608]
[1723758727845,0.3608,57388.0,57382.0,0.3608]
[1723758728260,0.06964414,57397.0,57382.0,0.3608]
[1723758728459,0.02,57397.0,57389.0,0.3608]
[1723758728964,0.043549,57392.0,57387.0,0.00026143]
[1723758730053,0.11319014,57396.0,57387.0,0.00026143]
[1723758730355,0.043546,57396.0,57387.0,0.00126143]
[1723758730563,0.043552,57388.0,57387.0,0.00126143]
[1723758731761,0.044552,57388.0,57387.0,0.00226143]
[1723758737461,0.044552,57388.0,57387.0,0.00126143]
[1723758737671,0.044552,57388.0,57387.0,0.00226143]
[1723758741565,0.044552,57388.0,57387.0,0.36306143]
[1723758742865,0.567312,57388.0,57387.0,0.36306143]
[1723758743770,0.567312,57388.0,57387.0,0.00226143]
[1723758743967,0.63679517,57388.0,57387.0,0.00226143]
[1723758744675,0.567312,57388.0,57387.0,0.00226143]
[1723758744869,1.03679517,57388.0,57387.0,0.00226143]
[1723758745070,0.63679517,57388.0,57387.0,0.00226143]
[1723758745374,1.03679517,57388.0,57387.0,0.00226143]
[1723758745574,0.63679517,57388.0,57387.0,0.00226143]
[1723758745875,0.567312,57388.0,57387.0,0.00226143]
[1723758746667,0.043555,57385.0,57380.0,0.043558]
[1723758746869,0.158855,57384.0,57380.0,0.043558]
[1723758748665,0.043555,57384.0,57380.0,0.043558]
[1723758749268,0.043555,57384.0,57380.0,0.09484552]
[1723758749667,0.11505683,57384.0,57380.0,0.043558]
[1723758749880,0.141955,57384.0,57380.0,0.55204552]
[1723758750069,0.141955,57384.0,57380.0,0.500758]
[1723758750369,0.0964,57381.0,57380.0,0.3608]
[1723758751569,0.20945783,57383.0,57380.0,0.3608]
[1723758751875,0.139956,57383.0,57380.0,0.3608]
[1723758752270,0.002,57381.0,57380.0,0.41208752]
[1723758752975,0.002,57381.0,57380.0,0.3608]
[1723758753271,0.002,57381.0,57380.0,0.41208752]
[1723758753472,0.043557,57381.0,57380.0,0.41208752]
[1723758753664,0.043557,57381.0,57380.0,0.3608]
[1723758753665,0.20945883,57381.0,57380.0,0.3608]
[1723758753979,0.139957,57381.0,57380.0,0.3608]
[1723758754471,0.2095731,57381.0,57380.0,0.3608]
[1723758754667,0.139957,57381.0,57380.0,0.3608]
[1723758755268,0.141957,57381.0,57380.0,0.3608]
[1723758757778,0.045557,57381.0,57380.0,0.3608]
[1723758758069,0.0984,57381.0,57380.0,0.3608]
[1723758758270,0.16801699,57381.0,57380.0,0.3608]
[1723758759067,0.0984,57381.0,57380.0,0.3608]
[1723758759376,0.16801699,57381.0,57380.0,0.3608]
[1723758759875,0.0984,57381.0,57380.0,0.3608]
[1723758760075,0.07161699,57381.0,57380.0,0.3608]
[1723758760274,0.16801699,57381.0,57380.0,0.3608]
[1723758760879,0.0984,57381.0,57380.0,0.05141398]
[1723758761069,0.043559,57379.0,57378.0,0.05141398]
[1723758761384,0.139959,57379.0,57376.0,0.00026143]
[1723758761680,0.20957772,57379.0,57376.0,0.00026143]
[1723758761870,0.139959,57379.0,57376.0,0.00026143]
[1723758762069,0.20957772,57379.0,57376.0,0.00026143]
[1723758762272,0.140959,57379.0,57378.0,0.002]
[1723758763080,0.140959,57379.0,57376.0,0.00526143]
[1723758763081,0.139959,57379.0,57376.0,0.00526143]
[1723758763479,0.139959,57379.0,57378.0,0.002]
[1723758764776,0.140959,57379.0,57378.0,0.002]
[1723758765282,0.139959,57379.0,57378.0,0.002]
[1723758765481,0.141959,57379.0,57378.0,0.001]
[1723758765980,0.141959,57379.0,57376.0,0.00026143]
[1723758766183,0.141959,57379.0,57378.0,0.001]
[1723758767492,0.141959,57379.0,57378.0,0.05140628]
[1723758767785,0.139959,57379.0,57378.0,0.05140628]
[1723758768485,0.141959,57379.0,57378.0,0.05140628]
[1723758768984,0.141959,57379.0,57378.0,0.05240628]
[1723758769370,0.141959,57379.0,57378.0,0.001]
[1723758772276,0.21157772,57379.0,57378.0,0.001]
[1723758773685,0.141959,57379.0,57378.0,0.001]
[1723758775579,0.141959,57379.0,57378.0,0.06938336]
[1723758775987,0.2116217,57379.0,57378.0,0.06938336]
[1723758776186,0.141959,57379.0,57378.0,0.43018336]
[1723758776379,0.045559,57379.0,57378.0,0.43018336]
[1723758776584,0.002,57379.0,57378.0,0.43018336]
[1723758776885,0.0984,57379.0,57378.0,0.43018336]
[1723758779789,0.0984,57379.0,57378.0,0.3618]
[1723758780092,0.04356,57377.0,57376.0,0.05169439]
[1723758780386,0.04356,57377.0,57376.0,0.00026143]
[1723758782386,0.04356,57377.0,57376.0,0.00326143]
[1723758782798,0.04356,57377.0,57376.0,0.00026143]
[1723758783495,0.04356,57377.0,57376.0,0.05169439]
[1723758783685,0.04356,57377.0,57376.0,0.00026143]
[1723758783886,0.04556,57377.0,57376.0,0.05169439]
[1723758784602,0.04556,57377.0,57376.0,0.00026143]
[1723758784793,0.04556,57377.0,57376.0,0.05167054]
[1723758784987,0.04556,57377.0,57376.0,0.00026143]
[1723758785195,0.11519584,57377.0,57376.0,0.00026143]
[1723758785490,0.04556,57377.0,57376.0,0.05167246]
[1723758785692,0.11519733,57377.0,57376.0,0.00026143]
[1723758786091,0.04556,57377.0,57376.0,0.05167178]
[1723758786398,0.115196,57377.0,57376.0,0.00026143]
[1723758786599,0.04556,57377.0,57376.0,0.05167257]
[1723758787300,0.11519484,57377.0,57376.0,0.00026143]
[1723758787601,0.14196,57377.0,57376.0,0.00026143]
[1723758789796,0.14196,57377.0,57376.0,0.05166666]
[1723758790896,0.04556,57377.0,57376.0,0.05166666]
[1723758791995,0.04556,57377.0,57376.0,0.41246666]
[1723758793298,0.04556,57377.0,57376.0,0.36106143]
[1723758794004,0.04556,57377.0,57376.0,0.4124897]
[1723758794403,0.11519484,57377.0,57376.0,0.36106143]
[1723758794798,0.11519484,57377.0,57376.0,0.4124897]
[1723758796509,0.04556,57377.0,57376.0,0.36106143]
[1723758797002,0.04556,57377.0,57376.0,0.41243172]
[1723758797198,0.04556,57377.0,57376.0,0.36106143]
[1723758797199,0.11520322,57377.0,57376.0,0.36106143]
[1723758797404,0.04556,57377.0,57376.0,0.36106143]
[1723758799606,0.11520322,57377.0,57376.0,0.36106143]
[1723758800802,0.11520322,57377.0,57376.0,0.00026143]
[1723758802008,0.11520322,57377.0,57376.0,0.05164959]
[1723758802009,0.04556,57377.0,57376.0,0.05164959]
[1723758802217,0.11520322,57377.0,57376.0,0.05164959]
[1723758802412,0.04556,57377.0,57376.0,0.05164959]
[1723758802915,0.11520322,57377.0,57376.0,0.05164959]
[1723758805208,0.11520322,57377.0,57376.0,0.00026143]
[1723758805913,0.04556,57377.0,57376.0,0.00026143]
[1723758806410,0.11520322,57377.0,57376.0,0.00026143]
[1723758806618,0.04556,57377.0,57376.0,0.05164698]
[1723758806811,0.04556,57377.0,57376.0,0.00026143]
[1723758807813,0.11522014,57377.0,57376.0,0.00026143]
[1723758808008,0.04556,57377.0,57376.0,0.00026143]
[1723758808808,0.11522454,57377.0,57376.0,0.00026143]
[1723758809119,0.07166454,57377.0,57376.0,0.00026143]
[1723758809303,0.002,57377.0,57376.0,0.12306143]
[1723758809611,0.07166454,57377.0,57376.0,0.12306143]
[1723758810017,0.002,57377.0,57376.0,0.12306143]
[1723758810318,0.07166454,57377.0,57376.0,0.12306143]
[1723758811117,0.07166454,57377.0,57376.0,0.28332243]
[1723758811516,0.21162454,57377.0,57376.0,0.00026143]
[1723758811718,0.14196,57377.0,57376.0,0.00026143]
[1723758814018,0.043562,57375.0,57373.0,0.06849641]
[1723758814221,0.0964,57374.0,57373.0,0.06849641]
[1723758814524,0.06968248,57376.0,57369.0,0.0964]
[1723758814718,0.06968248,57376.0,57374.0,0.06849662]
[1723758816118,0.06968248,57376.0,57374.0,0.07149662]
[1723758817318,0.06968248,57375.0,57374.0,0.07149662]
[1723758817525,0.52688248,57377.0,57374.0,0.003]
[1723758817716,0.52688248,57377.0,57375.0,0.06849523]
[1723758817917,0.52688248,57377.0,57374.0,0.07149523]
[1723758818419,0.06968248,57376.0,57374.0,0.07149523]